[Event "Titled Tuesday Blitz January 17 Late 2023"]
[White "Marcolino, Daniel Mattos"]
[Black "Souza, Gustavo Horokoski De"]
[WhiteFideId "2106841"]
[BlackFideId "2146584"]
[WhiteElo "2006"]
[BlackElo "1943"]
[Result "0-1"]
[Round "09"]
[TimeControl "180+2"]
[Date "2023.01.17"]
[WhiteClock "0:00:09"]
[BlackClock "0:00:14"]

1. d4 {[%clk 0:03:00]}  Nf6 {[%clk 0:02:44]} 2. Nf3 {[%clk 0:02:59]}  g6 {[%clk 0:02:41]} 3. g3 {[%clk 0:03:00]}  Bg7 {[%clk 0:02:41]} 4. Bg2 {[%clk 0:03:00]}  O-O {[%clk 0:02:40]} 5. O-O {[%clk 0:03:01]}  d5 {[%clk 0:02:41]} 6. c4 {[%clk 0:03:01]}  c6 {[%clk 0:02:41]} 7. b3 {[%clk 0:03:01]}  Nbd7 {[%clk 0:02:33]} 8. Bb2 {[%clk 0:03:01]}  Re8 {[%clk 0:02:31]} 9. e3 {[%clk 0:02:52]}  Ne4 {[%clk 0:02:31]} 10. Nbd2 {[%clk 0:02:48]}  Nxd2 {[%clk 0:02:29]} 11. Nxd2 {[%clk 0:02:45]}  dxc4 {[%clk 0:02:24]} 12. bxc4 {[%clk 0:02:43]}  Nb6 {[%clk 0:02:23]} 13. Rc1 {[%clk 0:02:24]}  e5 {[%clk 0:02:18]} 14. dxe5 {[%clk 0:02:01]}  Bxe5 {[%clk 0:02:17]} 15. Bxe5 {[%clk 0:02:02]}  Rxe5 {[%clk 0:02:17]} 16. Qc2 {[%clk 0:01:59]}  Bf5 {[%clk 0:02:13]} 17. Qb2 {[%clk 0:01:48]}  Re7 {[%clk 0:02:00]} 18. Rfd1 {[%clk 0:01:47]}  Rd7 {[%clk 0:01:59]} 19. e4 {[%clk 0:01:21]}  Bg4 {[%clk 0:01:54]} 20. f3 {[%clk 0:01:22]}  Be6 {[%clk 0:01:54]} 21. Qc2 {[%clk 0:01:15]}  Qe7 {[%clk 0:01:37]} 22. c5 {[%clk 0:01:14]}  Nc8 {[%clk 0:01:33]} 23. Nb3 {[%clk 0:01:13]}  a5 {[%clk 0:01:22]} 24. Nd4 {[%clk 0:01:06]}  Na7 {[%clk 0:01:15]} 25. f4 {[%clk 0:01:06]}  Rad8 {[%clk 0:01:10]} 26. Nxe6 {[%clk 0:00:58]}  Rxd1+ {[%clk 0:01:08]} 27. Rxd1 {[%clk 0:00:59]}  Rxd1+ {[%clk 0:01:07]} 28. Qxd1 {[%clk 0:01:00]}  Qxe6 {[%clk 0:01:08]} 29. Qd8+ {[%clk 0:00:46]}  Kg7 {[%clk 0:01:07]} 30. Qxa5 {[%clk 0:00:45]}  Nb5 {[%clk 0:01:07]} 31. Qd2 {[%clk 0:00:37]}  Qc4 {[%clk 0:01:05]} 32. Qf2 {[%clk 0:00:34]}  Nd4 {[%clk 0:01:02]} 33. Bf1 {[%clk 0:00:33]}  Qxc5 {[%clk 0:01:00]} 34. h4 {[%clk 0:00:28]}  b5 {[%clk 0:00:46]} 35. Kg2 {[%clk 0:00:26]}  Qc3 {[%clk 0:00:39]} 36. f5 {[%clk 0:00:21]}  Nc2 {[%clk 0:00:27]} 37. fxg6 {[%clk 0:00:16]}  hxg6 {[%clk 0:00:22]} 38. Kh2 {[%clk 0:00:14]}  Ne3 {[%clk 0:00:20]} 39. Bh3 {[%clk 0:00:14]}  Nc4 {[%clk 0:00:16]} 40. h5 {[%clk 0:00:11]}  Qd2 {[%clk 0:00:13]} 41. Qxd2 {[%clk 0:00:11]}  Nxd2 {[%clk 0:00:14]} 42. Bd7 {[%clk 0:00:11]}  Nxe4 {[%clk 0:00:13]} 43. Bxc6 {[%clk 0:00:12]}  Nc3 {[%clk 0:00:14]} 44. hxg6 {[%clk 0:00:10]}  fxg6 {[%clk 0:00:13]} 45. Kg2 {[%clk 0:00:09]}  b4 {[%clk 0:00:12]} 46. Ba4 {[%clk 0:00:07]}  Nxa4 {[%clk 0:00:12]} 47. Kf3 {[%clk 0:00:07]}  Nc3 {[%clk 0:00:12]} 48. Ke3 {[%clk 0:00:07]}  Nxa2 {[%clk 0:00:11]} 49. Kd3 {[%clk 0:00:07]}  Nc1+ {[%clk 0:00:11]} 50. Kc2 {[%clk 0:00:07]}  Ne2 {[%clk 0:00:11]} 51. g4 {[%clk 0:00:07]}  Kf6 {[%clk 0:00:11]} 52. Kb3 {[%clk 0:00:07]}  Kg5 {[%clk 0:00:12]} 53. Kxb4 {[%clk 0:00:08]}  Kxg4 {[%clk 0:00:12]} 54. Kc4 {[%clk 0:00:09]}  Kf3 {[%clk 0:00:13]} 55. Kd5 {[%clk 0:00:09]}  g5 {[%clk 0:00:13]} 56. Ke5 {[%clk 0:00:09]}  g4 {[%clk 0:00:14]} 0-1


[Site "https://www.chess.com"]

[Event "Titled Tuesday Blitz January 17 Late 2023"]
[White "Cella, Glaucio Dalla Cortt"]
[Black "Weisz, Bryan"]
[WhiteFideId "2119455"]
[BlackFideId "30934133"]
[WhiteElo "1894"]
[BlackElo "1973"]
[Result "1-0"]
[Round "09"]
[TimeControl "180+2"]
[Date "2023.01.17"]
[WhiteClock "0:01:17"]
[BlackClock "0:01:52"]

1. e4 {[%clk 0:03:00]}  e6 {[%clk 0:02:59]} 2. Nf3 {[%clk 0:03:01]}  d5 {[%clk 0:03:00]} 3. exd5 {[%clk 0:03:02]}  exd5 {[%clk 0:03:00]} 4. d4 {[%clk 0:03:03]}  Nf6 {[%clk 0:03:01]} 5. c3 {[%clk 0:03:04]}  Bd6 {[%clk 0:03:01]} 6. Bd3 {[%clk 0:03:04]}  O-O {[%clk 0:03:02]} 7. O-O {[%clk 0:03:04]}  Nc6 {[%clk 0:02:59]} 8. Bg5 {[%clk 0:03:02]}  h6 {[%clk 0:02:53]} 9. Bh4 {[%clk 0:02:54]}  g5 {[%clk 0:02:53]} 10. Bg3 {[%clk 0:02:54]}  Ne7 {[%clk 0:02:53]} 11. Qc2 {[%clk 0:02:42]}  Bg4 {[%clk 0:02:44]} 12. Nbd2 {[%clk 0:02:37]}  Qd7 {[%clk 0:02:35]} 13. Ne5 {[%clk 0:02:34]}  Bxe5 {[%clk 0:02:33]} 14. Bxe5 {[%clk 0:02:31]}  Kg7 {[%clk 0:02:08]} 15. f4 {[%clk 0:02:17]}  Ng6 {[%clk 0:02:06]} 16. fxg5 {[%clk 0:02:02]}  Nxe5 {[%clk 0:02:02]} 17. gxf6+ {[%clk 0:02:02]}  Kh8 {[%clk 0:02:01]} 18. dxe5 {[%clk 0:02:03]}  Rae8 {[%clk 0:02:00]} 19. Bf5 {[%clk 0:02:03]}  Bxf5 {[%clk 0:01:59]} 20. Qxf5 {[%clk 0:02:04]}  Qb5 {[%clk 0:02:00]} 21. Qf4 {[%clk 0:01:38]}  Kh7 {[%clk 0:01:58]} 22. Rf3 {[%clk 0:01:36]}  Rh8 {[%clk 0:01:55]} 23. Rg3 {[%clk 0:01:27]}  Qc5+ {[%clk 0:01:55]} 24. Qd4 {[%clk 0:01:18]}  Qf8 {[%clk 0:01:52]} 25. Rg7+ {[%clk 0:01:17]} 1-0


[Site "https://www.chess.com"]

[Event "Titled Tuesday Blitz January 17 Late 2023"]
[White "Tang, Andrew"]
[Black "Bernadskiy, Vitaliy"]
[WhiteFideId "2059630"]
[BlackFideId "14100371"]
[WhiteElo "2523"]
[BlackElo "2592"]
[Result "1-0"]
[Round "10"]
[TimeControl "180+2"]
[Date "2023.01.17"]
[WhiteClock "0:02:11"]
[BlackClock "0:00:30"]

1. d4 {[%clk 0:03:00]}  Nf6 {[%clk 0:02:59]} 2. c4 {[%clk 0:02:59]}  g6 {[%clk 0:02:59]} 3. f3 {[%clk 0:02:59]}  Bg7 {[%clk 0:02:56]} 4. e4 {[%clk 0:02:59]}  d6 {[%clk 0:02:56]} 5. Nc3 {[%clk 0:02:59]}  O-O {[%clk 0:02:51]} 6. Nge2 {[%clk 0:03:00]}  c5 {[%clk 0:02:51]} 7. d5 {[%clk 0:03:00]}  e6 {[%clk 0:02:49]} 8. Ng3 {[%clk 0:03:00]}  Na6 {[%clk 0:02:39]} 9. Be2 {[%clk 0:03:00]}  exd5 {[%clk 0:02:39]} 10. cxd5 {[%clk 0:03:01]}  Bd7 {[%clk 0:02:39]} 11. O-O {[%clk 0:02:56]}  Rb8 {[%clk 0:02:39]} 12. a4 {[%clk 0:02:50]}  Nb4 {[%clk 0:02:39]} 13. Bf4 {[%clk 0:02:48]}  Ne8 {[%clk 0:02:29]} 14. Qd2 {[%clk 0:02:48]}  a6 {[%clk 0:02:28]} 15. Bg5 {[%clk 0:02:42]}  Nf6 {[%clk 0:02:13]} 16. Bh6 {[%clk 0:02:25]}  b5 {[%clk 0:02:07]} 17. axb5 {[%clk 0:02:22]}  axb5 {[%clk 0:02:08]} 18. Bxg7 {[%clk 0:02:21]}  Kxg7 {[%clk 0:02:08]} 19. f4 {[%clk 0:02:21]}  c4 {[%clk 0:01:37]} 20. e5 {[%clk 0:02:17]}  Ne8 {[%clk 0:01:26]} 21. Nce4 {[%clk 0:02:17]}  Qb6+ {[%clk 0:01:08]} 22. Kh1 {[%clk 0:02:17]}  Na6 {[%clk 0:00:38]} 23. f5 {[%clk 0:02:13]}  dxe5 {[%clk 0:00:38]} 24. f6+ {[%clk 0:02:11]}  Kg8 {[%clk 0:00:30]} 25. Qh6 {[%clk 0:02:11]} 1-0


[Site "https://www.chess.com"]

[Event "Titled Tuesday Blitz January 17 Late 2023"]
[White "Artemiev, Vladislav"]
[Black "Sanal, Vahap"]
[WhiteFideId "24101605"]
[BlackFideId "6300545"]
[WhiteElo "2701"]
[BlackElo "2600"]
[Result "1-0"]
[Round "10"]
[TimeControl "180+2"]
[Date "2023.01.17"]
[WhiteClock "0:00:22"]
[BlackClock "0:00:01"]

1. Nf3 {[%clk 0:02:56]}  c5 {[%clk 0:02:58]} 2. c4 {[%clk 0:02:55]}  d6 {[%clk 0:02:57]} 3. d4 {[%clk 0:02:52]}  cxd4 {[%clk 0:02:57]} 4. Nxd4 {[%clk 0:02:52]}  g6 {[%clk 0:02:53]} 5. Nc3 {[%clk 0:02:49]}  Bg7 {[%clk 0:02:54]} 6. e4 {[%clk 0:02:49]}  Nc6 {[%clk 0:02:52]} 7. Be3 {[%clk 0:02:49]}  Nf6 {[%clk 0:02:48]} 8. Be2 {[%clk 0:02:46]}  O-O {[%clk 0:02:48]} 9. O-O {[%clk 0:02:47]}  a5 {[%clk 0:02:48]} 10. Ndb5 {[%clk 0:02:37]}  h5 {[%clk 0:02:28]} 11. h3 {[%clk 0:02:19]}  Be6 {[%clk 0:02:20]} 12. f4 {[%clk 0:02:15]}  Bd7 {[%clk 0:02:13]} 13. Bf3 {[%clk 0:02:01]}  Rb8 {[%clk 0:02:05]} 14. Qe2 {[%clk 0:01:59]}  Nb4 {[%clk 0:02:02]} 15. Rad1 {[%clk 0:01:56]}  Na6 {[%clk 0:01:58]} 16. Qf2 {[%clk 0:01:32]}  Bc6 {[%clk 0:01:50]} 17. e5 {[%clk 0:01:18]}  Ne8 {[%clk 0:01:49]} 18. exd6 {[%clk 0:01:06]}  exd6 {[%clk 0:01:36]} 19. f5 {[%clk 0:01:05]}  Qf6 {[%clk 0:01:23]} 20. fxg6 {[%clk 0:01:02]}  fxg6 {[%clk 0:01:13]} 21. Qd2 {[%clk 0:00:55]}  Bxf3 {[%clk 0:01:07]} 22. Rxf3 {[%clk 0:00:55]}  Qe6 {[%clk 0:01:08]} 23. Rxf8+ {[%clk 0:00:55]}  Bxf8 {[%clk 0:01:07]} 24. Nd5 {[%clk 0:00:47]}  Bg7 {[%clk 0:01:02]} 25. Re1 {[%clk 0:00:44]}  Qf7 {[%clk 0:00:45]} 26. Bd4 {[%clk 0:00:41]}  Be5 {[%clk 0:00:09]} 27. Bxe5 {[%clk 0:00:38]}  dxe5 {[%clk 0:00:10]} 28. Rxe5 {[%clk 0:00:38]}  Rd8 {[%clk 0:00:06]} 29. Qg5 {[%clk 0:00:31]}  Ra8 {[%clk 0:00:01]} 30. Nd4 {[%clk 0:00:23]}  Ng7 {[%clk 0:00:01]} 31. Re7 {[%clk 0:00:22]}  Qf8 {[%clk 0:00:01]} 32. Nf6+ {[%clk 0:00:22]}  Kh8 {[%clk 0:00:01]} 33. Qh6# {[%clk 0:00:22]} 1-0


[Site "https://www.chess.com"]

[Event "Titled Tuesday Blitz January 17 Late 2023"]
[White "Zierk, Steven"]
[Black "Sarana, Alexey"]
[WhiteFideId "2034255"]
[BlackFideId "24133795"]
[WhiteElo "2488"]
[BlackElo "2685"]
[Result "0-1"]
[Round "10"]
[TimeControl "180+2"]
[Date "2023.01.17"]
[WhiteClock "0:00:16"]
[BlackClock "0:00:18"]

1. e4 {[%clk 0:03:00]}  e5 {[%clk 0:02:48]} 2. Nf3 {[%clk 0:03:01]}  Nc6 {[%clk 0:02:47]} 3. Bc4 {[%clk 0:03:01]}  Nf6 {[%clk 0:02:47]} 4. d3 {[%clk 0:03:01]}  d5 {[%clk 0:02:48]} 5. exd5 {[%clk 0:03:01]}  Nxd5 {[%clk 0:02:49]} 6. O-O {[%clk 0:03:01]}  Bg4 {[%clk 0:02:49]} 7. h3 {[%clk 0:03:01]}  Bh5 {[%clk 0:02:49]} 8. Re1 {[%clk 0:03:01]}  Qd6 {[%clk 0:02:49]} 9. Nc3 {[%clk 0:02:52]}  Nxc3 {[%clk 0:02:49]} 10. bxc3 {[%clk 0:02:52]}  O-O-O {[%clk 0:02:50]} 11. g4 {[%clk 0:02:41]}  Bg6 {[%clk 0:02:49]} 12. Ng5 {[%clk 0:02:42]}  Qf6 {[%clk 0:01:54]} 13. Qf3 {[%clk 0:02:15]}  Qxf3 {[%clk 0:01:54]} 14. Nxf3 {[%clk 0:02:16]}  f6 {[%clk 0:01:50]} 15. Be3 {[%clk 0:02:11]}  e4 {[%clk 0:01:25]} 16. Nh4 {[%clk 0:02:08]}  exd3 {[%clk 0:01:23]} 17. Nxg6 {[%clk 0:02:03]}  hxg6 {[%clk 0:01:24]} 18. Bxd3 {[%clk 0:02:03]}  Ne5 {[%clk 0:01:24]} 19. Be2 {[%clk 0:01:57]}  Rxh3 {[%clk 0:01:22]} 20. Kg2 {[%clk 0:01:58]}  Rh4 {[%clk 0:01:22]} 21. Rh1 {[%clk 0:01:43]}  Rxh1 {[%clk 0:01:19]} 22. Rxh1 {[%clk 0:01:44]}  g5 {[%clk 0:01:18]} 23. Rb1 {[%clk 0:01:22]}  b6 {[%clk 0:01:06]} 24. a4 {[%clk 0:01:20]}  Bd6 {[%clk 0:00:59]} 25. a5 {[%clk 0:01:19]}  Ng6 {[%clk 0:00:57]} 26. Bd3 {[%clk 0:01:13]}  Nh4+ {[%clk 0:00:54]} 27. Kf1 {[%clk 0:01:12]}  Bf4 {[%clk 0:00:51]} 28. Bxf4 {[%clk 0:01:00]}  gxf4 {[%clk 0:00:52]} 29. Rb4 {[%clk 0:00:59]}  g5 {[%clk 0:00:48]} 30. Re4 {[%clk 0:00:58]}  Nf3 {[%clk 0:00:43]} 31. Re6 {[%clk 0:00:51]}  Rd6 {[%clk 0:00:34]} 32. Re8+ {[%clk 0:00:47]}  Kd7 {[%clk 0:00:34]} 33. Ra8 {[%clk 0:00:44]}  bxa5 {[%clk 0:00:34]} 34. Rxa7 {[%clk 0:00:43]}  Rd5 {[%clk 0:00:33]} 35. Ra8 {[%clk 0:00:26]}  Rc5 {[%clk 0:00:30]} 36. Rf8 {[%clk 0:00:22]}  Ke7 {[%clk 0:00:29]} 37. Ra8 {[%clk 0:00:20]}  Ne5 {[%clk 0:00:29]} 38. Bf5 {[%clk 0:00:20]}  Nc4 {[%clk 0:00:27]} 39. Ke2 {[%clk 0:00:20]}  Nd6 {[%clk 0:00:27]} 40. Bd3 {[%clk 0:00:20]}  Nf7 {[%clk 0:00:21]} 41. f3 {[%clk 0:00:18]}  Ne5 {[%clk 0:00:21]} 42. Be4 {[%clk 0:00:19]}  Rxc3 {[%clk 0:00:19]} 43. Rxa5 {[%clk 0:00:19]}  Re3+ {[%clk 0:00:19]} 44. Kf2 {[%clk 0:00:17]}  Nxg4+ {[%clk 0:00:20]} 45. Kg2 {[%clk 0:00:17]}  Ne5 {[%clk 0:00:19]} 46. Rc5 {[%clk 0:00:17]}  c6 {[%clk 0:00:18]} 47. Kf2 {[%clk 0:00:16]}  Ra3 {[%clk 0:00:18]} 0-1


[Site "https://www.chess.com"]

[Event "Titled Tuesday Blitz January 17 Late 2023"]
[White "Martinez Alcantara, Jose Eduardo"]
[Black "Bortnyk, Mykola"]
[WhiteFideId "3805662"]
[BlackFideId "14120836"]
[WhiteElo "2619"]
[BlackElo "2425"]
[Result "1/2-1/2"]
[Round "10"]
[TimeControl "180+2"]
[Date "2023.01.17"]
[WhiteClock "0:00:25"]
[BlackClock "0:00:17"]

1. Nf3 {[%clk 0:03:00]}  c5 {[%clk 0:02:59]} 2. g3 {[%clk 0:03:00]}  g6 {[%clk 0:02:59]} 3. Bg2 {[%clk 0:03:00]}  Bg7 {[%clk 0:02:59]} 4. O-O {[%clk 0:03:01]}  Nc6 {[%clk 0:03:00]} 5. c4 {[%clk 0:03:02]}  Nf6 {[%clk 0:02:59]} 6. Nc3 {[%clk 0:03:02]}  O-O {[%clk 0:02:59]} 7. d4 {[%clk 0:03:01]}  cxd4 {[%clk 0:03:00]} 8. Nxd4 {[%clk 0:03:02]}  a6 {[%clk 0:02:56]} 9. c5 {[%clk 0:02:47]}  Qc7 {[%clk 0:02:40]} 10. Nb3 {[%clk 0:02:42]}  b6 {[%clk 0:02:31]} 11. Bf4 {[%clk 0:02:39]}  Qa7 {[%clk 0:02:21]} 12. Be3 {[%clk 0:02:37]}  bxc5 {[%clk 0:02:12]} 13. Rc1 {[%clk 0:02:37]}  Qc7 {[%clk 0:02:08]} 14. Nxc5 {[%clk 0:02:27]}  Ng4 {[%clk 0:02:00]} 15. Bf4 {[%clk 0:02:22]}  Qa7 {[%clk 0:01:58]} 16. N3a4 {[%clk 0:02:16]}  e5 {[%clk 0:01:39]} 17. Bd2 {[%clk 0:02:04]}  Rb8 {[%clk 0:01:32]} 18. h3 {[%clk 0:01:58]}  Nf6 {[%clk 0:01:29]} 19. Be3 {[%clk 0:01:57]}  Nd4 {[%clk 0:01:29]} 20. Bxd4 {[%clk 0:01:34]}  exd4 {[%clk 0:01:30]} 21. Qxd4 {[%clk 0:01:34]}  Re8 {[%clk 0:01:30]} 22. Qd3 {[%clk 0:01:24]}  d5 {[%clk 0:01:25]} 23. e3 {[%clk 0:01:09]}  h5 {[%clk 0:01:21]} 24. a3 {[%clk 0:01:07]}  Rd8 {[%clk 0:01:03]} 25. b4 {[%clk 0:01:06]}  a5 {[%clk 0:01:00]} 26. b5 {[%clk 0:01:06]}  Bf5 {[%clk 0:00:59]} 27. Qb3 {[%clk 0:01:06]}  Ne4 {[%clk 0:00:54]} 28. b6 {[%clk 0:01:06]}  Qe7 {[%clk 0:00:49]} 29. Nxe4 {[%clk 0:01:02]}  dxe4 {[%clk 0:00:47]} 30. Rc7 {[%clk 0:00:59]}  Qe8 {[%clk 0:00:41]} 31. Nc5 {[%clk 0:00:52]}  Be5 {[%clk 0:00:34]} 32. Ra7 {[%clk 0:00:41]}  Rdc8 {[%clk 0:00:29]} 33. Nxe4 {[%clk 0:00:37]}  Rc6 {[%clk 0:00:26]} 34. b7 {[%clk 0:00:24]}  Rc7 {[%clk 0:00:27]} 35. Ng5 {[%clk 0:00:20]}  Bf6 {[%clk 0:00:21]} 36. h4 {[%clk 0:00:21]}  Bxg5 {[%clk 0:00:19]} 37. hxg5 {[%clk 0:00:21]}  Be4 {[%clk 0:00:20]} 38. Rxa5 {[%clk 0:00:07]}  Bxg2 {[%clk 0:00:19]} 39. Kxg2 {[%clk 0:00:07]}  Rcxb7 {[%clk 0:00:18]} 40. Qd5 {[%clk 0:00:07]}  Qe7 {[%clk 0:00:16]} 41. Qf3 {[%clk 0:00:04]}  Rb5 {[%clk 0:00:14]} 42. Rxb5 {[%clk 0:00:04]}  Rxb5 {[%clk 0:00:14]} 43. a4 {[%clk 0:00:05]}  Rxg5 {[%clk 0:00:14]} 44. Rb1 {[%clk 0:00:03]}  Rf5 {[%clk 0:00:10]} 45. Rb7 {[%clk 0:00:02]}  Qf6 {[%clk 0:00:09]} 46. Rb8+ {[%clk 0:00:03]}  Kh7 {[%clk 0:00:09]} 47. Qe2 {[%clk 0:00:03]}  h4 {[%clk 0:00:09]} 48. e4 {[%clk 0:00:03]}  h3+ {[%clk 0:00:08]} 49. Kxh3 {[%clk 0:00:04]}  Rxf2 {[%clk 0:00:08]} 50. Qg4 {[%clk 0:00:04]}  Ra2 {[%clk 0:00:04]} 51. Qh4+ {[%clk 0:00:01]}  Qxh4+ {[%clk 0:00:04]} 52. Kxh4 {[%clk 0:00:02]}  Rxa4 {[%clk 0:00:05]} 53. Re8 {[%clk 0:00:02]}  Kg7 {[%clk 0:00:03]} 54. Kg4 {[%clk 0:00:02]}  f5+ {[%clk 0:00:02]} 55. Kf4 {[%clk 0:00:02]}  fxe4 {[%clk 0:00:03]} 56. Re5 {[%clk 0:00:02]}  Kf6 {[%clk 0:00:02]} 57. Rxe4 {[%clk 0:00:02]}  g5+ {[%clk 0:00:03]} 58. Kf3 {[%clk 0:00:02]}  Rxe4 {[%clk 0:00:02]} 59. Kxe4 {[%clk 0:00:03]}  Ke6 {[%clk 0:00:02]} 60. g4 {[%clk 0:00:03]}  Kf6 {[%clk 0:00:03]} 61. Kd5 {[%clk 0:00:03]}  Kf7 {[%clk 0:00:03]} 62. Ke5 {[%clk 0:00:04]}  Kf8 {[%clk 0:00:04]} 63. Ke6 {[%clk 0:00:05]}  Kg8 {[%clk 0:00:04]} 64. Kf5 {[%clk 0:00:06]}  Kf8 {[%clk 0:00:05]} 65. Kf6 {[%clk 0:00:06]}  Kg8 {[%clk 0:00:05]} 66. Kxg5 {[%clk 0:00:07]}  Kg7 {[%clk 0:00:05]} 67. Kf5 {[%clk 0:00:07]}  Kf7 {[%clk 0:00:06]} 68. Kg5 {[%clk 0:00:08]}  Kg7 {[%clk 0:00:07]} 69. Kh4 {[%clk 0:00:09]}  Kh6 {[%clk 0:00:07]} 70. Kg3 {[%clk 0:00:10]}  Kg5 {[%clk 0:00:07]} 71. Kf3 {[%clk 0:00:11]}  Kg6 {[%clk 0:00:08]} 72. Kf4 {[%clk 0:00:12]}  Kf6 {[%clk 0:00:08]} 73. g5+ {[%clk 0:00:13]}  Kg6 {[%clk 0:00:09]} 74. Kg4 {[%clk 0:00:14]}  Kg7 {[%clk 0:00:09]} 75. Kh4 {[%clk 0:00:15]}  Kg6 {[%clk 0:00:10]} 76. Kg4 {[%clk 0:00:15]}  Kg7 {[%clk 0:00:11]} 77. Kf5 {[%clk 0:00:16]}  Kf7 {[%clk 0:00:11]} 78. g6+ {[%clk 0:00:17]}  Kg7 {[%clk 0:00:11]} 79. Kg5 {[%clk 0:00:17]}  Kg8 {[%clk 0:00:12]} 80. Kg4 {[%clk 0:00:18]}  Kg7 {[%clk 0:00:12]} 81. Kh5 {[%clk 0:00:19]}  Kg8 {[%clk 0:00:13]} 82. Kg5 {[%clk 0:00:20]}  Kg7 {[%clk 0:00:13]} 83. Kf5 {[%clk 0:00:21]}  Kg8 {[%clk 0:00:14]} 84. Kf6 {[%clk 0:00:22]}  Kf8 {[%clk 0:00:14]} 85. Kg5 {[%clk 0:00:23]}  Kg7 {[%clk 0:00:15]} 86. Kh5 {[%clk 0:00:23]}  Kg8 {[%clk 0:00:16]} 87. Kh6 {[%clk 0:00:23]}  Kh8 {[%clk 0:00:16]} 88. g7+ {[%clk 0:00:24]}  Kg8 {[%clk 0:00:17]} 89. Kg6 {[%clk 0:00:25]} 1/2-1/2


[Site "https://www.chess.com"]

[Event "Titled Tuesday Blitz January 17 Late 2023"]
[White "Oparin, Grigoriy"]
[Black "Paravyan, David"]
[WhiteFideId "24125890"]
[BlackFideId "4194985"]
[WhiteElo "2667"]
[BlackElo "2601"]
[Result "1/2-1/2"]
[Round "10"]
[TimeControl "180+2"]
[Date "2023.01.17"]
[WhiteClock "0:00:12"]
[BlackClock "0:00:04"]

1. Nf3 {[%clk 0:03:00]}  Nf6 {[%clk 0:03:00]} 2. c4 {[%clk 0:03:01]}  g6 {[%clk 0:03:00]} 3. Nc3 {[%clk 0:03:01]}  d5 {[%clk 0:03:00]} 4. cxd5 {[%clk 0:03:02]}  Nxd5 {[%clk 0:03:00]} 5. g3 {[%clk 0:03:02]}  Bg7 {[%clk 0:02:59]} 6. Bg2 {[%clk 0:03:03]}  O-O {[%clk 0:02:58]} 7. O-O {[%clk 0:03:01]}  c5 {[%clk 0:02:57]} 8. Nxd5 {[%clk 0:02:59]}  Qxd5 {[%clk 0:02:57]} 9. d3 {[%clk 0:03:00]}  Nc6 {[%clk 0:02:56]} 10. Be3 {[%clk 0:03:00]}  Bd7 {[%clk 0:02:57]} 11. d4 {[%clk 0:02:51]}  cxd4 {[%clk 0:02:00]} 12. Nxd4 {[%clk 0:02:52]}  Qh5 {[%clk 0:02:00]} 13. Nxc6 {[%clk 0:02:50]}  Bxc6 {[%clk 0:02:01]} 14. Bxc6 {[%clk 0:02:50]}  bxc6 {[%clk 0:02:02]} 15. Qc2 {[%clk 0:02:49]}  Qb5 {[%clk 0:01:33]} 16. Rab1 {[%clk 0:02:46]}  a5 {[%clk 0:01:31]} 17. Rfc1 {[%clk 0:02:44]}  a4 {[%clk 0:01:24]} 18. Kf1 {[%clk 0:02:34]}  Qd5 {[%clk 0:01:23]} 19. Qxc6 {[%clk 0:02:27]}  Qxa2 {[%clk 0:01:23]} 20. Qc4 {[%clk 0:02:02]}  Qxc4 {[%clk 0:01:12]} 21. Rxc4 {[%clk 0:02:03]}  Rfc8 {[%clk 0:01:11]} 22. Re4 {[%clk 0:01:44]}  f5 {[%clk 0:00:55]} 23. Rxe7 {[%clk 0:01:35]}  Rcb8 {[%clk 0:00:55]} 24. Ba7 {[%clk 0:00:19]}  Rb4 {[%clk 0:00:37]} 25. Bc5 {[%clk 0:00:19]}  Rb3 {[%clk 0:00:21]} 26. Ba3 {[%clk 0:00:18]}  Bf8 {[%clk 0:00:20]} 27. Re3 {[%clk 0:00:19]}  Bxa3 {[%clk 0:00:07]} 28. Rxb3 {[%clk 0:00:19]}  axb3 {[%clk 0:00:08]} 29. bxa3 {[%clk 0:00:19]}  Rxa3 {[%clk 0:00:09]} 30. Ke1 {[%clk 0:00:18]}  Kf7 {[%clk 0:00:10]} 31. Kd2 {[%clk 0:00:19]}  Ke6 {[%clk 0:00:06]} 32. Kc3 {[%clk 0:00:19]}  Ra2 {[%clk 0:00:03]} 33. Rb2 {[%clk 0:00:18]}  Ra1 {[%clk 0:00:04]} 34. Kxb3 {[%clk 0:00:18]}  g5 {[%clk 0:00:04]} 35. Kc3 {[%clk 0:00:12]}  Rh1 {[%clk 0:00:04]} 36. h4 {[%clk 0:00:11]}  gxh4 {[%clk 0:00:04]} 37. gxh4 {[%clk 0:00:12]}  Rxh4 {[%clk 0:00:05]} 38. Kd3 {[%clk 0:00:13]}  h5 {[%clk 0:00:04]} 39. Ke3 {[%clk 0:00:12]}  Kf6 {[%clk 0:00:02]} 40. Kf3 {[%clk 0:00:13]}  Rg4 {[%clk 0:00:03]} 41. Rb8 {[%clk 0:00:13]}  Rg7 {[%clk 0:00:02]} 42. Kf4 {[%clk 0:00:11]}  Rg4+ {[%clk 0:00:03]} 43. Kf3 {[%clk 0:00:11]}  h4 {[%clk 0:00:04]} 44. Rf8+ {[%clk 0:00:11]}  Ke6 {[%clk 0:00:04]} 45. Rh8 {[%clk 0:00:11]}  Kf7 {[%clk 0:00:04]} 46. Rh5 {[%clk 0:00:10]}  Kg6 {[%clk 0:00:04]} 47. Rh8 {[%clk 0:00:11]}  Kg7 {[%clk 0:00:05]} 48. Rh5 {[%clk 0:00:11]}  Kf6 {[%clk 0:00:04]} 49. Rh6+ {[%clk 0:00:11]}  Kg5 {[%clk 0:00:04]} 50. Rh8 {[%clk 0:00:10]}  Ra4 {[%clk 0:00:04]} 51. Rg8+ {[%clk 0:00:10]}  Kf6 {[%clk 0:00:04]} 52. Rh8 {[%clk 0:00:11]}  Kg5 {[%clk 0:00:04]} 53. Rg8+ {[%clk 0:00:11]}  Kf6 {[%clk 0:00:04]} 54. Rh8 {[%clk 0:00:12]}  Kg5 {[%clk 0:00:04]} 1/2-1/2


[Site "https://www.chess.com"]